bitfinex/quotes_SOLUSD_20241028
["timestamp","ask_amount","ask_price","bid_price","bid_amount"]
[1730123112652,5.6436,177.19,177.14,27.59275797]
[1730123112849,0.12549,177.18,177.14,27.59275797]
[1730123113054,0.12549,177.18,177.15,27.59275797]
[1730123113282,0.12549,177.19,177.16,27.59275797]
[1730123113483,22.4611,177.21,177.16,27.59275797]
[1730123113484,0.25098,177.2,177.16,27.59275797]
[1730123114052,0.25098,177.2,177.17,27.59275797]
[1730123114274,0.25098,177.2,177.15,27.59275797]
[1730123115059,0.25098,177.18,177.13,27.59275797]
[1730123115266,27.84373797,177.18,177.12,27.59275797]
[1730123116191,27.84373797,177.15,177.09,27.59275797]
[1730123116359,70.0,177.18,177.08,27.59275797]
[1730123116360,0.25098,177.13,177.08,27.59275797]
[1730123116686,0.25098,177.09,177.04,27.59275797]
[1730123117184,27.59275797,177.08,177.02,27.59275797]
[1730123117358,0.25098,177.07,177.02,27.59275797]
[1730123117554,27.59275797,177.06,177.01,27.59275797]
[1730123117750,0.12549,177.02,177.0,0.5988059]
[1730123117963,0.25098,177.02,177.0,0.5988059]
[1730123118176,27.84373797,177.02,177.0,0.5988059]
[1730123118782,27.84373797,177.01,177.0,0.5988059]
[1730123119489,0.25098,177.01,177.0,0.5988059]
[1730123120363,0.25098,177.03,177.0,0.5988059]
[1730123120783,0.12549,177.03,177.01,27.59275797]
[1730123120961,0.12549,177.04,177.01,27.59275797]
[1730123121367,16.5388,177.1,177.03,27.59275797]
[1730123121368,27.59275797,177.09,177.03,27.59275797]
[1730123121682,27.59275797,177.07,177.02,27.59275797]
[1730123122686,0.25098,177.06,177.01,27.59275797]
[1730123122984,0.25098,177.06,177.0,0.5988059]
[1730123122985,0.12549,177.04,177.0,0.5988059]
[1730123123177,0.12549,177.02,177.0,0.5988059]
[1730123123687,0.12549,177.06,177.01,27.59275797]
[1730123123889,70.0,177.2,177.02,0.1]
[1730123124100,6.4081,177.26,177.01,24.027864]
[1730123124101,104.00085797,177.26,177.19,27.59275797]
[1730123124266,76.4081,177.26,177.08,0.1]
[1730123124482,5.89757722,177.23,177.1,0.1]
[1730123124670,5.89757722,177.23,177.09,24.127864]
[1730123124984,5.89757722,177.23,177.11,23.776884]
[1730123125369,5.89757722,177.23,177.2,27.59275797]
[1730123125566,70.0,177.25,177.2,27.59275797]
[1730123125894,97.59275797,177.25,177.19,27.59275797]
[1730123126396,70.0,177.25,177.2,27.59275797]
[1730123126568,70.0,177.25,177.21,27.59275797]
[1730123126771,75.6417,177.25,177.2,27.59275797]
[1730123127989,0.25098,177.22,177.17,27.59275797]
[1730123128193,0.25098,177.19,177.14,27.59275797]
[1730123128390,0.25098,177.17,177.12,27.59275797]
[1730123128587,0.25098,177.17,177.13,27.59275797]
[1730123129798,27.59275797,177.16,177.1,27.59275797]
[1730123129993,0.25098,177.15,177.1,27.59275797]
[1730123130289,0.25098,177.15,177.11,27.59275797]
[1730123130472,0.25098,177.15,177.1,27.59275797]
[1730123130887,5.6443,177.17,177.08,27.59275797]
[1730123130888,0.25098,177.13,177.08,27.59275797]
[1730123131094,27.84373797,177.13,177.07,27.59275797]
[1730123131295,27.59275797,177.11,177.05,27.59275797]
[1730123131501,0.25098,177.09,177.04,27.59275797]
[1730123132390,0.25098,177.07,177.02,27.59275797]
[1730123132570,0.25098,177.07,177.05,27.59275797]
[1730123133098,0.25098,177.07,177.04,27.59275797]
[1730123133297,0.25098,177.08,177.03,27.59275797]
[1730123133592,0.25098,177.08,177.04,27.59275797]
[1730123133901,5.89798,177.09,177.04,27.59275797]
[1730123134080,0.25098,177.07,177.02,27.59275797]
[1730123134398,27.84373797,177.07,177.01,27.59275797]
[1730123134986,0.25098,177.05,177.01,27.59275797]
[1730123135183,27.84373797,177.05,177.0,28.19156387]
[1730123135500,27.84373797,177.05,177.0,0.5988059]
[1730123135791,0.25098,177.03,177.0,0.5988059]
[1730123136197,0.25098,177.03,177.0,28.19156387]
[1730123136397,0.25098,177.04,177.0,0.5988059]
[1730123136691,0.25098,177.04,177.02,27.59275797]
[1730123136892,0.25098,177.04,177.01,27.59275797]
[1730123137301,0.25098,177.05,177.01,27.59275797]
[1730123138086,0.25098,177.06,177.01,27.59275797]
[1730123138601,0.25098,177.06,177.02,27.59275797]
[1730123138783,0.25098,177.08,177.03,27.59275797]
[1730123138992,0.25098,177.07,177.03,27.59275797]
[1730123139298,2.40724203,177.03,177.0,0.5988059]
[1730123139500,2.40724203,177.03,177.02,27.59275797]
[1730123140579,2.40724203,177.03,177.02,55.18551594]
[1730123141029,76.5754,177.14,177.02,78.96239994]
[1730123141183,97.59275797,177.12,177.07,27.59275797]
[1730123141383,30.0,177.08,177.07,27.59275797]
[1730123147186,30.0,177.08,177.05,27.59275797]
[1730123147413,30.0,177.08,177.07,27.59275797]
[1730123148383,30.0,177.08,177.06,27.59275797]
[1730123148591,30.0,177.07,177.03,27.59275797]
[1730123150022,30.0,177.07,177.06,27.59275797]
[1730123150688,30.0,177.07,177.06,51.36964197]
[1730123150888,30.0,177.07,177.06,27.59275797]
[1730123151094,97.59275797,177.16,177.06,27.59275797]
[1730123151296,16.551,177.17,177.12,27.59275797]
[1730123151490,5.6434,177.2,177.16,27.59275797]
[1730123151714,5.6434,177.2,177.05,0.1]
[1730123151715,6.4952,177.23,177.19,27.59275797]
[1730123151892,27.59275797,177.26,177.21,27.59275797]
[1730123152091,31.77495968,177.25,177.19,27.59275797]
[1730123152290,31.77495968,177.24,177.18,27.59275797]
[1730123152489,27.59275797,177.22,177.17,27.59275797]
[1730123152686,27.59275797,177.21,177.16,27.59275797]
[1730123152887,27.59275797,177.22,177.16,27.59275797]
[1730123153103,27.59275797,177.24,177.19,27.59275797]
[1730123153308,70.0,177.25,177.2,27.59275797]
[1730123153309,103.23445797,177.25,177.2,27.59275797]
[1730123153724,103.23445797,177.25,177.19,27.59275797]
[1730123153896,27.59275797,177.24,177.19,27.59275797]
[1730123154288,33.23505797,177.24,177.19,27.59275797]
[1730123154607,0.25098,177.23,177.19,27.59275797]
[1730123155198,0.25098,177.23,177.2,27.59275797]
[1730123156423,0.25098,177.23,177.19,27.59275797]
[1730123157415,0.25098,177.25,177.2,27.59275797]
[1730123158113,27.59275797,177.27,177.21,27.59275797]
[1730123158323,4.43092729,177.26,177.22,27.59275797]
[1730123158615,0.25098,177.24,177.19,27.59275797]
[1730123159397,27.59275797,177.23,177.17,27.59275797]
[1730123159604,27.84373797,177.22,177.17,27.59275797]
[1730123159814,27.84373797,177.22,177.12,27.59275797]
[1730123159815,27.84373797,177.18,177.12,27.59275797]
[1730123160207,5.6442,177.17,177.12,27.59275797]
[1730123160423,0.25098,177.18,177.13,27.59275797]
[1730123160714,5.89498,177.18,177.14,27.59275797]
[1730123161024,0.25098,177.22,177.17,27.59275797]
[1730123161215,0.1,177.29,177.12,27.59275797]
[1730123161216,70.0,177.32,177.21,55.18551594]
[1730123161404,74.17900205,177.3,177.26,27.59275797]
[1730123161717,97.59275797,177.3,177.24,27.59275797]
[1730123162214,75.6402,177.3,177.25,27.59275797]
[1730123162509,0.25098,177.29,177.25,27.59275797]
[1730123162811,0.25098,177.27,177.22,27.59275797]
[1730123163005,0.25098,177.27,177.16,22.239]
[1730123163006,0.25098,177.29,177.25,27.59275797]
[1730123163209,0.25098,177.29,177.26,27.59275797]
[1730123163410,27.5092,177.3,177.26,27.59275797]
[1730123163619,97.5092,177.3,177.25,27.59275797]
[1730123163803,27.5092,177.3,177.25,27.59275797]
[1730123164193,27.5092,177.3,177.26,27.59275797]
[1730123164499,27.5092,177.3,177.25,27.59275797]
[1730123164700,27.59275797,177.29,177.23,27.59275797]
[1730123164997,27.59275797,177.29,177.24,27.59275797]
[1730123165195,1.08208818,177.34,177.27,27.59275797]
[1730123165196,97.59275797,177.32,177.27,27.59275797]
[1730123165403,5.6399,177.31,177.27,27.59275797]
[1730123165606,33.23195797,177.33,177.27,27.59275797]
[1730123165914,5.6392,177.33,177.29,27.59275797]
[1730123166416,6.4621,177.34,177.3,27.59275797]
[1730123166618,6.6617,177.38,177.33,27.59275797]
[1730123166801,4.16786721,177.37,177.32,27.59275797]
[1730123167011,27.59275797,177.36,177.3,27.59275797]
[1730123167331,70.0,177.34,177.28,27.59275797]
[1730123167494,27.59275797,177.32,177.22,6.2343]
[1730123167693,27.59275797,177.33,177.28,27.59275797]
[1730123167999,0.25098,177.32,177.28,27.59275797]
[1730123168201,0.25098,177.33,177.29,27.59275797]
[1730123168421,27.84373797,177.33,177.27,27.59275797]
[1730123168921,0.25098,177.31,177.26,27.59275797]
[1730123169624,27.59275797,177.28,177.22,27.59275797]
[1730123169800,0.25098,177.28,177.23,27.59275797]
[1730123169998,27.59275797,177.3,177.24,27.59275797]
[1730123170222,27.59275797,177.3,177.25,27.59275797]
[1730123170514,27.59275797,177.3,177.24,27.59275797]
[1730123170919,0.25098,177.29,177.24,27.59275797]
[1730123171125,27.59275797,177.29,177.24,27.59275797]
[1730123171421,70.0,177.32,177.26,27.59275797]
[1730123171422,27.59275797,177.32,177.26,27.59275797]
[1730123171621,0.25098,177.31,177.26,27.59275797]
[1730123172627,27.84373797,177.31,177.25,27.59275797]
[1730123173502,27.59275797,177.28,177.22,27.59275797]
[1730123173811,27.84373797,177.27,177.21,27.59275797]
[1730123174003,27.84373797,177.27,177.22,27.59275797]
[1730123174004,0.25098,177.27,177.22,27.59275797]
[1730123174399,27.84373797,177.27,177.21,27.59275797]
[1730123174612,27.84373797,177.25,177.19,27.59275797]
[1730123175006,27.84373797,177.25,177.14,6.128]
[1730123175007,27.59275797,177.23,177.18,27.59275797]
[1730123175407,0.25098,177.23,177.18,27.59275797]
[1730123176023,27.71824797,177.21,177.16,27.59275797]
[1730123176221,27.84373797,177.19,177.13,27.59275797]
[1730123176424,0.25098,177.19,177.14,27.59275797]
[1730123176630,0.25098,177.19,177.15,27.59275797]
[1730123176805,0.25098,177.2,177.15,27.59275797]
[1730123177131,27.84373797,177.2,177.14,27.59275797]
[1730123177630,27.84373797,177.2,177.15,27.59275797]
[1730123177831,0.25098,177.15,177.09,5.89746947]
[1730123178030,0.25098,177.15,177.0,0.5988059]
[1730123178031,0.12549,177.09,177.0,0.5988059]
[1730123178212,27.59275797,177.06,177.0,28.19156387]
[1730123178415,27.59275797,177.12,177.01,5.90116019]
[1730123178416,70.0,177.09,177.01,5.90116019]
[1730123178725,27.59275797,177.05,177.0,0.5988059]
[1730123179509,27.59275797,177.06,177.0,28.19156387]
[1730123179706,27.59275797,177.12,177.0,28.19156387]
[1730123179707,70.0,177.15,177.05,27.59275797]
[1730123179908,27.59275797,177.16,177.1,27.59275797]
[1730123180135,27.59275797,177.18,177.12,27.59275797]
[1730123180312,27.59275797,177.17,177.11,27.59275797]
[1730123180828,27.59275797,177.14,177.08,27.59275797]
[1730123181221,27.59275797,177.17,177.11,27.59275797]
[1730123181812,27.59275797,177.16,177.1,27.59275797]
[1730123182635,27.71824797,177.15,177.09,27.59275797]
[1730123183209,0.12549,177.15,177.1,27.59275797]
[1730123183408,0.25098,177.15,177.1,27.59275797]
[1730123184108,0.25098,177.15,177.11,27.59275797]
[1730123184316,0.25098,177.18,177.13,27.59275797]
[1730123184510,27.84373797,177.18,177.12,27.59275797]
[1730123185316,0.25098,177.18,177.13,27.59275797]
[1730123185813,27.84373797,177.18,177.12,27.59275797]
[1730123186407,33.48773797,177.18,177.12,27.59275797]
[1730123187631,5.89498,177.18,177.13,27.59275797]
[1730123187934,0.12549,177.22,177.17,27.59275797]
[1730123188119,27.71824797,177.22,177.16,27.59275797]
[1730123188936,27.71824797,177.23,177.18,27.59275797]
[1730123189127,0.12549,177.22,177.17,27.59275797]
[1730123189328,27.71824797,177.22,177.16,27.59275797]
[1730123190419,27.59275797,177.19,177.13,27.59275797]
[1730123190625,27.71824797,177.22,177.17,27.59275797]
[1730123191041,5.6417,177.25,177.2,27.59275797]
[1730123191241,0.25098,177.24,177.2,27.59275797]
[1730123191450,27.59275797,177.24,177.12,27.59275797]
[1730123191948,33.23485797,177.24,177.13,23.776884]
[1730123192245,33.23485797,177.24,177.18,27.59275797]
[1730123192426,5.6421,177.24,177.19,27.59275797]
[1730123193025,27.59275797,177.2,177.15,27.59275797]
[1730123193253,0.25098,177.19,177.14,27.59275797]
[1730123193424,0.25098,177.19,177.06,6.5359]
[1730123193425,27.59275797,177.18,177.12,27.59275797]
[1730123193627,27.59275797,177.17,177.12,27.59275797]
[1730123193833,27.59275797,177.18,177.12,27.59275797]
[1730123194656,5.6446,177.16,177.11,27.59275797]
[1730123194943,27.59275797,177.13,177.07,27.59275797]
[1730123195146,27.59275797,177.17,177.11,27.59275797]
[1730123195330,70.0,177.19,177.05,5.99638392]
[1730123195331,33.23665797,177.18,177.12,27.59275797]
[1730123195531,0.25098,177.17,177.12,27.59275797]
[1730123195952,0.12549,177.18,177.14,27.59275797]
[1730123196255,27.84373797,177.18,177.12,27.59275797]
[1730123196740,5.6442,177.17,177.12,27.59275797]
[1730123197328,5.89498,177.18,177.14,27.59275797]
[1730123197538,0.25098,177.19,177.14,27.59275797]
[1730123197747,103.48743797,177.19,177.13,27.59275797]
[1730123197939,0.25098,177.16,177.11,27.59275797]
[1730123198142,27.84373797,177.16,177.1,27.59275797]
[1730123198340,27.59275797,177.15,177.1,27.59275797]
[1730123198841,27.59275797,177.13,177.07,27.59275797]
[1730123199538,27.84373797,177.14,177.08,27.59275797]
[1730123199742,5.6446,177.16,177.11,27.59275797]
[1730123199940,33.23735797,177.16,177.1,27.59275797]
[1730123200146,27.84373797,177.15,177.09,27.59275797]
[1730123200738,5.6452,177.14,177.09,27.59275797]
[1730123201226,5.6452,177.14,177.05,5.89638392]
[1730123201227,0.25098,177.16,177.11,27.59275797]
[1730123202135,5.89558,177.16,177.11,27.59275797]
[1730123202335,5.644,177.18,177.13,27.59275797]
[1730123202750,5.644,177.18,177.14,27.59275797]
[1730123203054,0.12549,177.19,177.15,27.59275797]
[1730123203245,27.71824797,177.2,177.14,27.59275797]
[1730123203434,27.59275797,177.22,177.16,27.59275797]
[1730123203639,33.23565797,177.22,177.16,27.59275797]
[1730123203835,33.23565797,177.22,177.12,27.59275797]
[1730123203836,5.6429,177.22,177.17,27.59275797]
[1730123204053,33.23385797,177.27,177.21,27.59275797]
[1730123204352,70.0,177.35,177.26,27.59275797]
[1730123204562,15.9305,177.42,177.23,6.5947]
[1730123204563,4.18191484,177.34,177.32,27.59275797]
[1730123204756,27.59275797,177.38,177.32,27.59275797]
[1730123205054,4.18286704,177.37,177.32,27.59275797]
[1730123205248,27.59275797,177.38,177.32,27.59275797]
[1730123205631,5.6369,177.4,177.33,27.59275797]
[1730123205833,70.0,177.41,177.28,0.1]
[1730123206146,27.59275797,177.4,177.34,27.59275797]
[1730123206453,70.0,177.41,177.37,27.59275797]
[1730123206751,27.59275797,177.4,177.34,27.59275797]
[1730123207159,103.22935797,177.41,177.35,27.59275797]
[1730123207337,0.25098,177.4,177.35,27.59275797]
[1730123208159,0.25098,177.4,177.3,27.59275797]
[1730123208160,33.22885797,177.43,177.37,27.59275797]
[1730123209156,27.59275797,177.39,177.34,27.59275797]
[1730123209756,0.25098,177.4,177.37,27.59275797]
[1730123210061,27.59275797,177.43,177.37,27.59275797]
[1730123210349,33.22845797,177.44,177.38,27.59275797]
[1730123210552,33.22845797,177.44,177.3,27.79275797]
[1730123210553,27.59275797,177.42,177.36,27.59275797]
[1730123211131,70.0,177.46,177.4,27.59275797]
[1730123211353,97.59275797,177.46,177.41,27.59275797]
[1730123211563,97.59275797,177.46,177.4,27.59275797]
[1730123211730,27.59275797,177.46,177.4,27.59275797]
[1730123211936,33.22745797,177.47,177.41,27.59275797]
[1730123213151,33.22745797,177.47,177.35,6.2213]
[1730123213152,5.6347,177.47,177.42,27.59275797]
[1730123213350,0.25098,177.46,177.41,27.59275797]
[1730123213672,27.84373797,177.46,177.41,27.59275797]
[1730123214149,0.25098,177.46,177.41,27.59275797]
[1730123214349,33.47883797,177.46,177.4,27.59275797]
[1730123214662,27.84373797,177.46,177.4,27.59275797]
[1730123214866,0.25098,177.46,177.41,27.59275797]
[1730123215578,5.88598,177.46,177.41,27.59275797]
[1730123216452,0.25098,177.46,177.41,27.59275797]
[1730123217455,27.84373797,177.46,177.4,27.59275797]
[1730123218173,27.59275797,177.41,177.35,33.81405797]
[1730123218375,30.0,177.41,177.39,27.59275797]
[1730123219074,30.0,177.41,177.35,6.2213]
[1730123219075,30.0,177.41,177.4,27.59275797]
[1730123220274,30.0,177.41,177.38,27.59275797]
[1730123220449,30.0,177.41,177.37,27.59275797]
[1730123220655,30.0,177.41,177.38,27.59275797]
[1730123221250,30.0,177.41,177.35,6.2213]
[1730123221452,63.22955797,177.41,177.35,27.59275797]
[1730123221687,30.0,177.41,177.37,27.59275797]
[1730123221975,30.0,177.41,177.3,34.04645797]
[1730123221976,30.0,177.41,177.38,27.59275797]
[1730123222281,30.0,177.41,177.37,27.59275797]
[1730123222750,27.59275797,177.4,177.35,27.59275797]
[1730123222949,30.0,177.39,177.35,27.59275797]
[1730123223151,30.0,177.39,177.36,27.59275797]
[1730123223360,30.0,177.39,177.34,27.59275797]
[1730123223597,27.59275797,177.38,177.32,27.59275797]
[1730123223752,27.84373797,177.38,177.33,27.59275797]
[1730123223952,30.0,177.37,177.32,27.59275797]
[1730123224374,30.0,177.37,177.35,27.59275797]
[1730123224551,30.0,177.37,177.36,27.59275797]
[1730123224751,5.636,177.43,177.36,27.59275797]
[1730123224752,27.71824797,177.42,177.36,27.59275797]
[1730123225848,76.624,177.45,177.31,0.1]
[1730123225849,27.59275797,177.44,177.38,27.59275797]
[1730123226049,30.0,177.39,177.31,23.976884]
[1730123226373,30.0,177.39,177.32,0.1]
[1730123226873,30.0,177.39,177.38,27.59275797]
[1730123227261,30.0,177.39,177.37,27.59275797]
[1730123227984,30.0,177.39,177.38,27.59275797]
[1730123231283,30.0,177.39,177.37,27.59275797]
[1730123232663,30.0,177.39,177.36,27.59275797]
[1730123232965,30.0,177.39,177.38,27.59275797]
[1730123236286,5.6347,177.47,177.38,27.59275797]
[1730123236470,33.22745797,177.47,177.42,27.59275797]
[1730123236876,33.22745797,177.47,177.41,27.59275797]
[1730123237067,27.59275797,177.46,177.41,27.59275797]
[1730123237264,33.22745797,177.47,177.41,27.59275797]
[1730123237479,33.22745797,177.47,177.42,27.59275797]
[1730123238379,5.6347,177.47,177.42,27.59275797]
[1730123238606,27.59275797,177.47,177.41,27.59275797]
[1730123239386,27.59275797,177.44,177.38,27.59275797]
[1730123239766,27.59275797,177.45,177.39,27.59275797]
[1730123239967,27.59275797,177.44,177.39,27.59275797]
[1730123240196,27.59275797,177.42,177.37,27.59275797]
[1730123240361,27.59275797,177.42,177.36,27.59275797]
[1730123240558,70.0,177.45,177.35,27.59275797]
[1730123240559,27.59275797,177.41,177.35,27.59275797]
[1730123240763,30.0,177.41,177.37,27.59275797]
[1730123240988,30.0,177.41,177.38,27.59275797]
[1730123241158,30.0,177.41,177.39,27.59275797]
[1730123241362,30.0,177.41,177.38,27.59275797]
[1730123241562,30.0,177.41,177.39,27.59275797]
[1730123243887,33.22815797,177.45,177.39,27.59275797]
[1730123244096,27.59275797,177.44,177.38,27.59275797]
[1730123244262,33.22905797,177.42,177.36,27.59275797]
[1730123245171,27.59275797,177.39,177.34,27.59275797]
[1730123245590,27.59275797,177.38,177.32,27.59275797]
[1730123246272,33.23035797,177.38,177.32,27.59275797]
[1730123246677,27.59275797,177.39,177.33,27.59275797]
[1730123246880,30.0,177.37,177.34,27.59275797]
[1730123247083,30.0,177.37,177.36,27.59275797]
[1730123248893,33.22865797,177.44,177.36,27.59275797]
[1730123249088,5.6359,177.44,177.39,27.59275797]
[1730123249292,30.0,177.4,177.39,27.59275797]
[1730123249585,30.0,177.4,177.33,0.1]
[1730123249586,30.0,177.4,177.38,27.59275797]
[1730123249788,30.0,177.4,177.39,27.59275797]
[1730123250193,34.20489217,177.4,177.39,27.59275797]
[1730123250370,27.59275797,177.46,177.39,27.59275797]
[1730123250569,4.2053618,177.45,177.4,27.59275797]
[1730123250764,4.2053618,177.45,177.34,0.25098]
[1730123250765,4.2053618,177.44,177.42,27.59275797]
[1730123250970,34.2053618,177.43,177.42,27.59275797]
[1730123251470,34.2053618,177.43,177.38,6.3047]
[1730123251471,34.2053618,177.43,177.41,27.59275797]
[1730123251669,30.0,177.43,177.42,27.59275797]
[1730123251896,34.20753246,177.43,177.42,27.59275797]
[1730123253472,30.0,177.43,177.42,27.59275797]
[1730123253671,0.98096975,177.56,177.43,23.776884]
[1730123253869,27.59275797,177.53,177.47,27.59275797]
[1730123254092,4.20965597,177.52,177.47,27.59275797]
[1730123254370,27.59275797,177.53,177.47,27.59275797]
[1730123254371,30.0,177.48,177.47,27.59275797]
[1730123254676,4.20965597,177.48,177.47,27.59275797]
[1730123254999,27.59275797,177.55,177.47,27.59275797]
[1730123255197,33.22455797,177.56,177.5,27.59275797]
[1730123255382,30.0,177.51,177.5,27.59275797]
[1730123256077,33.22455797,177.56,177.5,27.59275797]
[1730123256674,27.59275797,177.55,177.49,27.59275797]
[1730123256907,27.59275797,177.54,177.48,27.59275797]
[1730123257776,27.59275797,177.51,177.46,27.59275797]
[1730123258083,0.25098,177.54,177.43,23.776884]
[1730123258084,27.59275797,177.49,177.43,27.59275797]
[1730123258283,27.59275797,177.48,177.43,27.59275797]
[1730123258795,33.22715797,177.49,177.43,27.59275797]
[1730123259398,30.0,177.46,177.42,27.59275797]
[1730123259802,30.0,177.46,177.43,27.59275797]
[1730123260009,30.0,177.46,177.44,27.59275797]
[1730123260304,30.0,177.46,177.45,27.59275797]
[1730123260484,30.0,177.46,177.44,27.59275797]
[1730123260679,30.0,177.46,177.43,27.59275797]
[1730123260997,35.635,177.46,177.42,27.59275797]
[1730123261514,35.635,177.46,177.41,27.59275797]
[1730123262001,30.0,177.46,177.42,27.59275797]
[1730123262493,35.6351,177.46,177.42,27.59275797]
[1730123262674,63.22785797,177.46,177.4,27.59275797]
[1730123263001,27.59275797,177.44,177.38,27.59275797]
[1730123263207,35.6351,177.46,177.38,27.59275797]
[1730123263208,30.0,177.42,177.38,27.59275797]
[1730123263495,30.0,177.42,177.37,27.59275797]
[1730123263699,30.0,177.42,177.38,27.59275797]
[1730123264501,30.0,177.42,177.39,27.59275797]
[1730123264873,30.0,177.42,177.38,27.59275797]
[1730123265788,30.0,177.42,177.39,27.59275797]
[1730123265994,30.0,177.42,177.41,27.59275797]
[1730123266397,30.0,177.42,177.4,27.59275797]
[1730123266898,35.6363,177.42,177.39,27.59275797]
[1730123267099,35.6363,177.42,177.38,27.59275797]
[1730123267684,63.22905797,177.42,177.36,27.59275797]
[1730123267876,27.59275797,177.4,177.35,27.59275797]
[1730123268081,30.0,177.39,177.35,27.59275797]
[1730123268279,30.0,177.39,177.36,27.59275797]
[1730123268475,30.0,177.39,177.37,27.59275797]
[1730123268701,30.0,177.39,177.35,27.59275797]
[1730123269081,30.0,177.39,177.36,27.59275797]
[1730123269892,30.0,177.39,177.38,27.59275797]
[1730123270707,5.6359,177.44,177.38,27.59275797]
[1730123270708,5.635,177.46,177.38,27.59275797]
[1730123270882,5.635,177.46,177.43,27.59275797]
[1730123271086,30.0,177.44,177.43,27.59275797]
[1730123271304,30.0,177.44,177.42,27.59275797]
[1730123271606,5.635,177.46,177.42,27.59275797]
[1730123272616,5.6346,177.48,177.44,27.59275797]
[1730123273303,33.22735797,177.48,177.43,27.59275797]
[1730123273500,27.59275797,177.47,177.41,27.59275797]
[1730123273692,5.635,177.46,177.41,27.59275797]
[1730123273896,5.635,177.46,177.42,27.59275797]
[1730123274284,5.56579503,177.48,177.43,27.59275797]
[1730123274705,27.59275797,177.51,177.46,27.59275797]
[1730123274887,33.76605797,177.53,177.47,27.59275797]
[1730123275091,27.59275797,177.52,177.46,27.59275797]
[1730123275596,33.22625797,177.51,177.46,27.59275797]
[1730123275798,5.6335,177.51,177.46,27.59275797]
[1730123276010,27.59275797,177.5,177.45,27.59275797]
[1730123276180,27.59275797,177.5,177.39,34.00635797]
[1730123276385,27.59275797,177.49,177.43,27.59275797]
[1730123276593,5.6335,177.51,177.42,27.59275797]
[1730123276594,27.59275797,177.47,177.42,27.59275797]
[1730123277209,27.59275797,177.48,177.42,27.59275797]
[1730123277412,27.59275797,177.48,177.43,27.59275797]
[1730123277801,5.6346,177.48,177.44,27.59275797]
[1730123278503,27.59275797,177.47,177.42,27.59275797]
[1730123278697,5.6346,177.48,177.44,27.59275797]
[1730123278899,5.6346,177.48,177.39,27.59275797]
[1730123278900,5.6346,177.48,177.43,27.59275797]
[1730123279110,33.22735797,177.48,177.43,27.59275797]
[1730123280313,30.0,177.46,177.43,27.59275797]
[1730123280823,30.0,177.46,177.44,27.59275797]
[1730123281299,30.0,177.46,177.43,27.59275797]
[1730123281703,57.59275797,177.46,177.4,27.59275797]
[1730123282006,35.635,177.46,177.44,27.59275797]
[1730123282219,30.0,177.46,177.45,27.59275797]
[1730123282513,30.0,177.46,177.45,17.16909391]
[1730123282700,30.0,177.46,177.37,23.876884]
[1730123282897,30.0,177.46,177.44,17.16909391]
[1730123283097,30.0,177.46,177.45,17.16909391]
[1730123283302,5.634,177.5,177.45,17.16909391]
[1730123283510,5.634,177.5,177.46,17.16909391]
[1730123283821,30.0,177.47,177.45,17.16909391]
[1730123284426,30.0,177.47,177.46,17.16909391]
[1730123285908,5.6335,177.51,177.46,17.16909391]
[1730123286131,5.6335,177.51,177.47,17.16909391]
[1730123286321,30.0,177.48,177.45,17.16909391]
[1730123287109,17.16909391,177.5,177.45,17.16909391]
[1730123287315,17.16909391,177.49,177.44,17.16909391]
[1730123287518,17.16909391,177.49,177.43,17.16909391]
[1730123287728,47.16909391,177.46,177.36,15.0861]
[1730123287897,47.16909391,177.46,177.41,17.16909391]
[1730123288433,30.0,177.46,177.44,17.16909391]
[1730123288719,30.0,177.46,177.43,17.16909391]
[1730123289596,35.6353,177.46,177.42,17.16909391]
[1730123290803,52.80439391,177.46,177.4,17.16909391]
[1730123291620,17.16909391,177.44,177.39,17.16909391]
[1730123291821,17.16909391,177.41,177.35,17.16909391]
[1730123291998,17.16909391,177.39,177.34,17.16909391]
[1730123292431,22.80699391,177.37,177.32,17.16909391]
[1730123293133,17.16909391,177.4,177.34,17.16909391]
[1730123293305,17.16909391,177.39,177.34,17.16909391]
[1730123293503,17.16909391,177.39,177.33,17.16909391]
[1730123293815,17.16909391,177.39,177.34,17.16909391]
[1730123294004,17.42007391,177.4,177.34,17.16909391]
[1730123294203,0.25098,177.4,177.35,17.16909391]
[1730123294427,17.42007391,177.4,177.35,17.16909391]
[1730123294628,22.80629391,177.39,177.34,17.16909391]
[1730123295208,5.6372,177.39,177.36,17.16909391]
[1730123295729,0.12549,177.41,177.37,17.16909391]
[1730123295941,5.6363,177.42,177.38,17.16909391]
[1730123296231,5.6359,177.44,177.41,17.16909391]